[Event "Elite Hotels Open 2023"]
[Site "Elite Stadshotellet, Kungsgatan 6, Vaxjo, Sweden"]
[Date "2023.02.10"]
[Round "4.12"]
[White "Nilsson, Oliver"]
[Black "Krantz, Christopher"]
[Result "0-1"]
[TimeControl "15 minutes + 5 seconds per move from move one (Round 1 - 4) / 90 minutes + 30 seconds per move from move one (Round 5 - 8)"]
[WhiteFideId "1730177"]
[BlackFideId "1707876"]
[WhiteElo "1925"]
[BlackElo "2262"]

1. e4 {[%clk 00:15:08]} {[%emt 00:00:03]} e5 {[%clk 00:15:06]} {[%emt
00:00:04]} 2. Nf3 {[%clk 00:15:11]} {[%emt 00:00:01]} Nc6 {[%clk 00:15:09]}
{[%emt 00:00:02]} 3. Bc4 {[%clk 00:15:15]} {[%emt 00:00:02]} Bc5 {[%clk
00:15:12]} {[%emt 00:00:01]} 4. c3 {[%clk 00:15:19]} {[%emt 00:00:03]} Nf6
{[%clk 00:15:15]} {[%emt 00:00:01]} 5. d4 {[%clk 00:15:23]} exd4 {[%clk
00:15:19]} {[%emt 00:00:01]} 6. e5 {[%clk 00:15:27]} {[%emt 00:00:01]} d5
{[%clk 00:15:15]} {[%emt 00:00:08]} 7. Bb5 {[%clk 00:15:31]} {[%emt 00:00:03]}
Ne4 {[%clk 00:15:18]} 8. cxd4 {[%clk 00:15:34]} {[%emt 00:00:02]} Bb6 {[%clk
00:15:22]} {[%emt 00:00:02]} 9. h3 {[%clk 00:15:38]} {[%emt 00:00:01]} O-O
{[%clk 00:14:54]} {[%emt 00:00:32]} 10. O-O {[%clk 00:15:38]} {[%emt 00:00:05]}
f6 {[%clk 00:14:04]} {[%emt 00:00:56]} 11. Nc3 {[%clk 00:15:41]} {[%emt
00:00:02]} fxe5 {[%clk 00:13:09]} {[%emt 00:00:59]} 12. Bxc6 {[%clk 00:15:38]}
{[%emt 00:00:08]} bxc6 {[%clk 00:13:06]} {[%emt 00:00:08]} 13. Nxe4 {[%clk
00:15:41]} {[%emt 00:00:02]} dxe4 {[%clk 00:12:50]} {[%emt 00:00:22]} 14. Qb3+
{[%clk 00:15:06]} {[%emt 00:00:41]} Qd5 {[%clk 00:12:23]} {[%emt 00:00:30]} 15.
Nxe5 {[%clk 00:15:08]} {[%emt 00:00:03]} Bxd4 {[%clk 00:11:21]} {[%emt
00:01:07]} 16. Nxc6 {[%clk 00:14:44]} {[%emt 00:00:29]} Qxb3 {[%clk 00:11:20]}
{[%emt 00:00:07]} 17. axb3 {[%clk 00:14:41]} {[%emt 00:00:08]} Bf6 {[%clk
00:09:28]} {[%emt 00:01:56]} 18. Be3 {[%clk 00:12:26]} {[%emt 00:02:21]} Bd7
{[%clk 00:08:28]} {[%emt 00:01:04]} 19. Rac1 {[%clk 00:09:12]} {[%emt
00:03:20]} Bxb2 {[%clk 00:07:12]} {[%emt 00:01:21]} 20. Ne7+ {[%clk 00:09:01]}
{[%emt 00:00:16]} Kf7 {[%clk 00:06:38]} {[%emt 00:00:38]} 21. Rxc7 {[%clk
00:09:04]} {[%emt 00:00:03]} Kxe7 {[%clk 00:06:10]} {[%emt 00:00:33]} 22. Rd1
{[%clk 00:09:04]} {[%emt 00:00:05]} Rfd8 {[%clk 00:05:57]} {[%emt 00:00:17]} 23.
Bc5+ {[%clk 00:07:11]} {[%emt 00:01:59]} Ke8 {[%clk 00:05:50]} {[%emt
00:00:11]} 24. Re1 {[%clk 00:07:05]} {[%emt 00:00:11]} Rdc8 {[%clk 00:04:14]}
{[%emt 00:01:42]} 25. Rxe4+ {[%clk 00:05:07]} {[%emt 00:02:03]} Kd8 {[%clk
00:04:17]} {[%emt 00:00:01]} 26. Rxa7 {[%clk 00:04:25]} {[%emt 00:00:47]} Rxa7
{[%clk 00:04:09]} {[%emt 00:00:13]} 27. Bxa7 {[%clk 00:04:29]} Rc1+ {[%clk
00:03:51]} {[%emt 00:00:23]} 28. Kh2 {[%clk 00:04:32]} {[%emt 00:00:02]} Bc6
{[%clk 00:03:45]} {[%emt 00:00:11]} 29. Rc4 {[%clk 00:03:00]} {[%emt 00:01:37]}
Be5+ {[%clk 00:03:37]} {[%emt 00:00:12]} 30. f4 {[%clk 00:03:03]} {[%emt
00:00:03]} Rxc4 {[%clk 00:03:36]} {[%emt 00:00:06]} 31. bxc4 {[%clk 00:03:03]}
{[%emt 00:00:06]} Bxf4+ {[%clk 00:03:38]} {[%emt 00:00:02]} 32. g3 {[%clk
00:02:57]} {[%emt 00:00:11]} Bd2 {[%clk 00:03:12]} {[%emt 00:00:31]} 33. Bd4
{[%clk 00:02:47]} {[%emt 00:00:16]} g6 {[%clk 00:03:14]} {[%emt 00:00:02]} 34.
h4 {[%clk 00:02:32]} {[%emt 00:00:20]} h5 {[%clk 00:03:13]} {[%emt 00:00:05]}
35. Kh3 {[%clk 00:01:59]} {[%emt 00:00:39]} Ke7 {[%clk 00:03:12]} {[%emt
00:00:06]} 36. g4 {[%clk 00:01:53]} {[%emt 00:00:12]} Bd7 {[%clk 00:03:12]}
{[%emt 00:00:05]} 37. Kg3 {[%clk 00:01:36]} {[%emt 00:00:22]} hxg4 {[%clk
00:02:57]} {[%emt 00:00:19]} 38. c5 {[%clk 00:01:15]} {[%emt 00:00:27]} Be1+
{[%clk 00:02:59]} {[%emt 00:00:02]} 39. Kg2 {[%clk 00:01:16]} {[%emt 00:00:04]}
Bc6+ {[%clk 00:02:57]} {[%emt 00:00:07]} 40. Kg1 {[%clk 00:01:12]} {[%emt
00:00:09]} Ke6 {[%clk 00:02:45]} {[%emt 00:00:17]} 41. Be3 {[%clk 00:00:51]}
{[%emt 00:00:26]} Bxh4 {[%clk 00:02:39]} {[%emt 00:00:11]} 0-1

[Event "Elite Hotels Open 2023"]
[Site "Elite Stadshotellet, Kungsgatan 6, Vaxjo, Sweden"]
[Date "2023.02.10"]
[Round "4.13"]
[White "Wiklund, Johan"]
[Black "Johansson, Gunnar"]
[Result "0-1"]
[TimeControl "15 minutes + 5 seconds per move from move one (Round 1 - 4) / 90 minutes + 30 seconds per move from move one (Round 5 - 8)"]
[WhiteFideId "1713817"]
[BlackFideId "1703501"]
[WhiteElo "1899"]
[BlackElo "2260"]

1. Nf3 {[%clk 00:15:07]} {[%emt 00:00:01]} d5 {[%clk 00:15:08]} {[%emt
00:00:03]} 2. d4 {[%clk 00:15:11]} {[%emt 00:00:02]} Nf6 {[%clk 00:15:11]}
{[%emt 00:00:02]} 3. c4 {[%clk 00:15:14]} {[%emt 00:00:01]} c6 {[%clk
00:15:14]} {[%emt 00:00:02]} 4. cxd5 {[%clk 00:15:17]} {[%emt 00:00:03]} cxd5
{[%clk 00:15:17]} {[%emt 00:00:01]} 5. Nc3 {[%clk 00:15:21]} {[%emt 00:00:01]}
Nc6 {[%clk 00:15:21]} 6. Bf4 {[%clk 00:15:23]} {[%emt 00:00:04]} a6 {[%clk
00:15:25]} {[%emt 00:00:02]} 7. Qc2 {[%clk 00:15:12]} {[%emt 00:00:15]} Bg4
{[%clk 00:15:10]} {[%emt 00:00:19]} 8. e3 {[%clk 00:14:26]} {[%emt 00:00:52]}
Bxf3 {[%clk 00:14:50]} {[%emt 00:00:25]} 9. gxf3 {[%clk 00:14:29]} {[%emt
00:00:02]} e6 {[%clk 00:14:52]} {[%emt 00:00:03]} 10. Be2 {[%clk 00:13:11]}
{[%emt 00:01:23]} Be7 {[%clk 00:14:54]} {[%emt 00:00:03]} 11. O-O {[%clk
00:12:52]} {[%emt 00:00:25]} O-O {[%clk 00:14:55]} {[%emt 00:00:04]} 12. Rfc1
{[%clk 00:12:09]} {[%emt 00:00:46]} Rc8 {[%clk 00:14:53]} {[%emt 00:00:07]} 13.
Qd1 {[%clk 00:10:59]} {[%emt 00:01:16]} Re8 {[%clk 00:14:19]} {[%emt 00:00:39]}
14. Na4 {[%clk 00:10:56]} {[%emt 00:00:08]} Nd7 {[%clk 00:14:10]} {[%emt
00:00:14]} 15. Bd3 {[%clk 00:10:03]} {[%emt 00:00:58]} b5 {[%clk 00:11:20]}
{[%emt 00:02:55]} 16. Nc3 {[%clk 00:09:41]} {[%emt 00:00:27]} Nb6 {[%clk
00:11:08]} {[%emt 00:00:18]} 17. a4 {[%clk 00:08:10]} {[%emt 00:01:36]} Nc4
{[%clk 00:10:41]} {[%emt 00:00:31]} 18. Qe2 {[%clk 00:04:09]} {[%emt 00:04:06]}
b4 {[%clk 00:07:18]} {[%emt 00:03:28]} 19. Nd1 {[%clk 00:04:11]} {[%emt
00:00:03]} N6a5 {[%clk 00:07:01]} {[%emt 00:00:22]} 20. Rc2 {[%clk 00:03:15]}
{[%emt 00:01:01]} Qb6 {[%clk 00:05:50]} {[%emt 00:01:17]} 21. Rb1 {[%clk
00:02:57]} {[%emt 00:00:22]} b3 {[%clk 00:05:01]} {[%emt 00:00:55]} 22. Rcc1
{[%clk 00:02:51]} {[%emt 00:00:10]} g6 {[%clk 00:04:50]} {[%emt 00:00:16]} 23.
Nc3 {[%clk 00:02:41]} {[%emt 00:00:14]} Rc6 {[%clk 00:04:38]} {[%emt 00:00:17]}
24. Be5 {[%clk 00:01:37]} {[%emt 00:01:09]} Rec8 {[%clk 00:04:29]} {[%emt
00:00:14]} 25. Qe1 {[%clk 00:01:32]} {[%emt 00:00:10]} Bb4 {[%clk 00:04:04]}
{[%emt 00:00:30]} 26. e4 {[%clk 00:01:15]} {[%emt 00:00:23]} Nxe5 {[%clk
00:03:39]} {[%emt 00:00:31]} 27. dxe5 {[%clk 00:01:17]} {[%emt 00:00:02]} d4
{[%clk 00:03:37]} {[%emt 00:00:07]} 28. Qe2 {[%clk 00:00:15]} {[%emt 00:01:08]}
dxc3 {[%clk 00:03:32]} {[%emt 00:00:10]} 29. bxc3 {[%clk 00:00:18]} {[%emt
00:00:01]} Rxc3 {[%clk 00:03:30]} {[%emt 00:00:06]} 30. Rxc3 {[%clk 00:00:20]}
{[%emt 00:00:04]} Rxc3 {[%clk 00:03:28]} {[%emt 00:00:06]} 31. Bxa6 {[%clk
00:00:21]} {[%emt 00:00:04]} Rc2 {[%clk 00:03:14]} {[%emt 00:00:19]} 32. Qf1
{[%clk 00:00:23]} {[%emt 00:00:03]} Rxf2 {[%clk 00:02:55]} {[%emt 00:00:25]}
0-1

[Event "Elite Hotels Open 2023"]
[Site "Elite Stadshotellet, Kungsgatan 6, Vaxjo, Sweden"]
[Date "2023.02.10"]
[Round "4.14"]
[White "Burwick, Malte"]
[Black "Ravik, Andreas"]
[Result "1-0"]
[TimeControl "15 minutes + 5 seconds per move from move one (Round 1 - 4) / 90 minutes + 30 seconds per move from move one (Round 5 - 8)"]
[WhiteFideId "1702475"]
[BlackFideId "1722522"]
[WhiteElo "2219"]
[BlackElo "1946"]

1. Nf3 {[%clk 00:15:07]} {[%emt 00:00:02]} Nf6 {[%clk 00:15:07]} {[%emt
00:00:03]} 2. g3 {[%clk 00:14:58]} {[%emt 00:00:14]} g6 {[%clk 00:15:09]}
{[%emt 00:00:03]} 3. b4 {[%clk 00:14:44]} {[%emt 00:00:19]} Bg7 {[%clk
00:15:08]} {[%emt 00:00:05]} 4. Bb2 {[%clk 00:14:48]} {[%emt 00:00:02]} d5
{[%clk 00:15:05]} {[%emt 00:00:08]} 5. Bg2 {[%clk 00:14:48]} {[%emt 00:00:04]}
b6 {[%clk 00:14:45]} {[%emt 00:00:25]} 6. c4 {[%clk 00:13:58]} {[%emt
00:00:56]} Bb7 {[%clk 00:14:44]} {[%emt 00:00:05]} 7. cxd5 {[%clk 00:13:54]}
{[%emt 00:00:10]} Bxd5 {[%clk 00:14:36]} {[%emt 00:00:14]} 8. O-O {[%clk
00:13:47]} {[%emt 00:00:11]} O-O {[%clk 00:14:36]} {[%emt 00:00:04]} 9. Re1
{[%clk 00:13:34]} {[%emt 00:00:18]} Nbd7 {[%clk 00:13:33]} {[%emt 00:01:09]} 10.
Nc3 {[%clk 00:12:06]} {[%emt 00:01:34]} Bb7 {[%clk 00:13:04]} {[%emt 00:00:33]}
11. Rb1 {[%clk 00:10:40]} {[%emt 00:01:30]} c5 {[%clk 00:12:12]} {[%emt
00:00:57]} 12. bxc5 {[%clk 00:10:37]} {[%emt 00:00:09]} Nxc5 {[%clk 00:12:14]}
{[%emt 00:00:04]} 13. d3 {[%clk 00:10:23]} {[%emt 00:00:18]} Rc8 {[%clk
00:11:44]} {[%emt 00:00:35]} 14. Nb5 {[%clk 00:10:10]} {[%emt 00:00:18]} a6
{[%clk 00:10:49]} {[%emt 00:01:00]} 15. Na3 {[%clk 00:10:12]} {[%emt 00:00:03]}
b5 {[%clk 00:10:46]} {[%emt 00:00:09]} 16. Qd2 {[%clk 00:09:45]} {[%emt
00:00:32]} Na4 {[%clk 00:10:20]} {[%emt 00:00:30]} 17. Be5 {[%clk 00:09:46]}
{[%emt 00:00:04]} Qd7 {[%clk 00:09:10]} {[%emt 00:01:16]} 18. Ba1 {[%clk
00:07:59]} {[%emt 00:01:51]} Rfd8 {[%clk 00:08:59]} {[%emt 00:00:15]} 19. Qf4
{[%clk 00:07:20]} {[%emt 00:00:45]} Nd5 {[%clk 00:08:32]} {[%emt 00:00:32]} 20.
Qh4 {[%clk 00:07:15]} {[%emt 00:00:10]} Bxa1 {[%clk 00:08:27]} {[%emt
00:00:11]} 21. Rxa1 {[%clk 00:07:18]} {[%emt 00:00:02]} Qd6 {[%clk 00:07:48]}
{[%emt 00:00:43]} 22. Ng5 {[%clk 00:07:11]} {[%emt 00:00:11]} h5 {[%clk
00:07:40]} {[%emt 00:00:14]} 23. e4 {[%clk 00:05:42]} {[%emt 00:01:34]} Qxa3
{[%clk 00:07:27]} {[%emt 00:00:18]} 24. exd5 {[%clk 00:05:46]} {[%emt
00:00:02]} Bxd5 {[%clk 00:07:29]} {[%emt 00:00:03]} 25. Bxd5 {[%clk 00:05:37]}
{[%emt 00:00:13]} Rxd5 {[%clk 00:07:33]} {[%emt 00:00:02]} 26. d4 {[%clk
00:02:49]} {[%emt 00:02:53]} Qd6 {[%clk 00:07:06]} {[%emt 00:00:32]} 27. Ne4
{[%clk 00:02:31]} {[%emt 00:00:22]} Qd7 {[%clk 00:06:42]} {[%emt 00:00:30]} 28.
Qf4 {[%clk 00:02:23]} {[%emt 00:00:13]} Rxd4 {[%clk 00:06:24]} {[%emt
00:00:22]} 29. Qh6 {[%clk 00:02:26]} {[%emt 00:00:02]} Qd8 {[%clk 00:05:57]}
{[%emt 00:00:33]} 30. Ng5 {[%clk 00:02:26]} {[%emt 00:00:04]} 1-0

[Event "Elite Hotels Open 2023"]
[Site "Elite Stadshotellet, Kungsgatan 6, Vaxjo, Sweden"]
[Date "2023.02.10"]
[Round "4.15"]
[White "Morell, Ludvig"]
[Black "Rasti, Arvin"]
[Result "0-1"]
[TimeControl "15 minutes + 5 seconds per move from move one (Round 1 - 4) / 90 minutes + 30 seconds per move from move one (Round 5 - 8)"]
[WhiteFideId "1736779"]
[BlackFideId "1741160"]
[WhiteElo "1882"]
[BlackElo "2211"]

1. e4 {[%clk 00:15:09]} c6 {[%clk 00:15:08]} {[%emt 00:00:03]} 2. Nc3 {[%clk
00:15:09]} {[%emt 00:00:04]} d5 {[%clk 00:15:12]} {[%emt 00:00:01]} 3. Nf3
{[%clk 00:15:12]} {[%emt 00:00:01]} dxe4 {[%clk 00:15:16]} {[%emt 00:00:01]} 4.
Nxe4 {[%clk 00:15:16]} {[%emt 00:00:01]} Nf6 {[%clk 00:15:20]} {[%emt
00:00:01]} 5. Nxf6+ exf6 {[%clk 00:15:24]} 6. Bc4 {[%clk 00:15:17]} {[%emt
00:00:06]} Bd6 {[%clk 00:15:22]} {[%emt 00:00:08]} 7. Qe2+ {[%clk 00:15:21]}
Qe7 {[%clk 00:15:22]} {[%emt 00:00:05]} 8. Qxe7+ {[%clk 00:15:22]} {[%emt
00:00:02]} Bxe7 {[%clk 00:15:09]} {[%emt 00:00:20]} 9. d4 {[%clk 00:15:25]}
{[%emt 00:00:02]} Bd6 {[%clk 00:15:05]} {[%emt 00:00:08]} 10. O-O {[%clk
00:15:28]} {[%emt 00:00:03]} O-O {[%clk 00:15:07]} {[%emt 00:00:03]} 11. c3
{[%clk 00:15:31]} {[%emt 00:00:01]} Bg4 {[%clk 00:15:04]} {[%emt 00:00:08]} 12.
h3 {[%clk 00:15:26]} {[%emt 00:00:11]} Bf5 {[%clk 00:14:31]} {[%emt 00:00:37]}
13. Re1 {[%clk 00:15:26]} {[%emt 00:00:05]} Nd7 {[%clk 00:14:14]} {[%emt
00:00:22]} 14. g4 {[%clk 00:15:28]} {[%emt 00:00:03]} Bg6 {[%clk 00:13:46]}
{[%emt 00:00:34]} 15. Nh4 {[%clk 00:15:31]} {[%emt 00:00:02]} Rfe8 {[%clk
00:13:31]} {[%emt 00:00:20]} 16. Bd2 {[%clk 00:15:34]} {[%emt 00:00:02]} b5
{[%clk 00:13:11]} {[%emt 00:00:25]} 17. Bb3 {[%clk 00:15:37]} {[%emt 00:00:02]}
Bd3 {[%clk 00:12:55]} {[%emt 00:00:21]} 18. Rxe8+ {[%clk 00:15:39]} {[%emt
00:00:04]} Rxe8 {[%clk 00:12:58]} {[%emt 00:00:02]} 19. Re1 {[%clk 00:15:43]}
Rxe1+ {[%clk 00:12:42]} {[%emt 00:00:22]} 20. Bxe1 {[%clk 00:15:46]} Nb6 {[%clk
00:12:21]} {[%emt 00:00:26]} 21. Bd2 {[%clk 00:15:34]} {[%emt 00:00:17]} g6
{[%clk 00:12:05]} {[%emt 00:00:21]} 22. f4 {[%clk 00:15:16]} {[%emt 00:00:23]}
a5 {[%clk 00:11:22]} {[%emt 00:00:48]} 23. a3 {[%clk 00:15:09]} {[%emt
00:00:12]} a4 {[%clk 00:10:15]} {[%emt 00:01:12]} 24. Ba2 {[%clk 00:15:12]}
{[%emt 00:00:01]} Bc4 {[%clk 00:10:01]} {[%emt 00:00:20]} 25. Bxc4 {[%clk
00:14:42]} {[%emt 00:00:36]} Nxc4 {[%clk 00:10:04]} {[%emt 00:00:02]} 26. Bc1
{[%clk 00:14:43]} {[%emt 00:00:01]} Kf8 {[%clk 00:09:08]} {[%emt 00:01:03]} 27.
Kf2 {[%clk 00:14:47]} {[%emt 00:00:01]} Bxf4 {[%clk 00:08:36]} {[%emt
00:00:37]} 28. Nxg6+ {[%clk 00:14:18]} {[%emt 00:00:34]} fxg6 {[%clk 00:08:15]}
{[%emt 00:00:27]} 29. Bxf4 {[%clk 00:14:20]} {[%emt 00:00:02]} Nxb2 {[%clk
00:08:15]} {[%emt 00:00:04]} 30. Bd6+ {[%clk 00:14:23]} {[%emt 00:00:02]} Kf7
{[%clk 00:08:19]} {[%emt 00:00:02]} 31. Ke2 {[%clk 00:14:15]} {[%emt 00:00:12]}
Ke6 {[%clk 00:08:18]} {[%emt 00:00:08]} 32. Bb4 {[%clk 00:14:17]} Kd5 {[%clk
00:08:02]} {[%emt 00:00:22]} 33. Be7 {[%clk 00:13:39]} {[%emt 00:00:42]} Ke6
{[%clk 00:07:52]} {[%emt 00:00:16]} 34. Bb4 {[%clk 00:13:42]} {[%emt 00:00:02]}
Nc4 {[%clk 00:07:40]} {[%emt 00:00:17]} 35. Kf3 {[%clk 00:13:29]} {[%emt
00:00:18]} Nb6 {[%clk 00:07:04]} {[%emt 00:00:40]} 36. Ke4 {[%clk 00:13:01]}
{[%emt 00:00:33]} Nd5 {[%clk 00:06:27]} {[%emt 00:00:43]} 37. Ba5 {[%clk
00:13:05]} Ne7 {[%clk 00:06:22]} {[%emt 00:00:10]} 38. Kd3 {[%clk 00:12:57]}
{[%emt 00:00:13]} f5 {[%clk 00:06:15]} {[%emt 00:00:12]} 39. c4 {[%clk
00:12:56]} {[%emt 00:00:06]} Kd7 {[%clk 00:05:13]} {[%emt 00:01:06]} 40. cxb5
{[%clk 00:12:37]} {[%emt 00:00:25]} cxb5 {[%clk 00:05:16]} 41. Bd2 {[%clk
00:12:40]} {[%emt 00:00:02]} Ke6 {[%clk 00:05:02]} {[%emt 00:00:19]} 42. Bg5
{[%clk 00:12:05]} {[%emt 00:00:40]} Nc6 {[%clk 00:04:53]} {[%emt 00:00:15]} 43.
Bd2 {[%clk 00:12:02]} {[%emt 00:00:08]} Kd5 {[%clk 00:04:46]} {[%emt 00:00:11]}
44. Bc3 {[%clk 00:11:12]} {[%emt 00:00:55]} fxg4 {[%clk 00:04:24]} {[%emt
00:00:27]} 45. hxg4 {[%clk 00:11:15]} {[%emt 00:00:02]} h5 {[%clk 00:04:28]}
{[%emt 00:00:02]} 46. gxh5 {[%clk 00:10:59]} {[%emt 00:00:21]} gxh5 {[%clk
00:04:32]} {[%emt 00:00:01]} 47. Ke3 {[%clk 00:10:58]} {[%emt 00:00:06]} h4
{[%clk 00:04:35]} {[%emt 00:00:02]} 0-1

[Event "Elite Hotels Open 2023"]
[Site "Elite Stadshotellet, Kungsgatan 6, Vaxjo, Sweden"]
[Date "2023.02.10"]
[Round "4.16"]
[White "Ask, Josef"]
[Black "Johansson, Roland"]
[Result "1/2-1/2"]
[TimeControl "15 minutes + 5 seconds per move from move one (Round 1 - 4) / 90 minutes + 30 seconds per move from move one (Round 5 - 8)"]
[WhiteTitle "FM"]
[WhiteFideId "1704583"]
[BlackFideId "1716123"]
[WhiteElo "2169"]
[BlackElo "1946"]

1. b3 {[%clk 00:15:08]} {[%emt 00:00:01]} f5 {[%clk 00:15:05]} {[%emt
00:00:07]} 2. Bb2 {[%clk 00:15:04]} {[%emt 00:00:10]} Nf6 {[%clk 00:15:09]}
{[%emt 00:00:01]} 3. c4 {[%clk 00:14:53]} {[%emt 00:00:16]} g6 {[%clk
00:15:09]} {[%emt 00:00:05]} 4. h3 {[%clk 00:14:51]} {[%emt 00:00:07]} Bg7
{[%clk 00:15:12]} {[%emt 00:00:02]} 5. Nf3 {[%clk 00:14:33]} {[%emt 00:00:22]}
d6 {[%clk 00:15:15]} {[%emt 00:00:02]} 6. d4 {[%clk 00:14:23]} {[%emt
00:00:16]} O-O {[%clk 00:15:17]} {[%emt 00:00:03]} 7. Nbd2 {[%clk 00:14:21]}
{[%emt 00:00:07]} Qe8 {[%clk 00:15:18]} {[%emt 00:00:03]} 8. Qc2 {[%clk
00:14:21]} {[%emt 00:00:05]} Nc6 {[%clk 00:15:15]} {[%emt 00:00:08]} 9. d5
{[%clk 00:14:06]} {[%emt 00:00:21]} Nd8 {[%clk 00:15:18]} 10. g3 {[%clk
00:13:45]} {[%emt 00:00:27]} e5 {[%clk 00:15:19]} {[%emt 00:00:05]} 11. dxe6
Nxe6 {[%clk 00:15:22]} 12. Bg2 {[%clk 00:13:44]} {[%emt 00:00:09]} Bd7 {[%clk
00:15:04]} {[%emt 00:00:24]} 13. e3 {[%clk 00:13:24]} {[%emt 00:00:24]} f4
{[%clk 00:14:07]} {[%emt 00:01:01]} 14. O-O {[%clk 00:13:03]} {[%emt 00:00:27]}
fxe3 {[%clk 00:13:57]} {[%emt 00:00:16]} 15. fxe3 {[%clk 00:13:07]} {[%emt
00:00:01]} Bc6 {[%clk 00:13:45]} {[%emt 00:00:17]} 16. Rae1 {[%clk 00:12:42]}
{[%emt 00:00:29]} Nc5 {[%clk 00:12:55]} {[%emt 00:00:55]} 17. b4 {[%clk
00:12:29]} {[%emt 00:00:19]} Nce4 {[%clk 00:12:54]} {[%emt 00:00:06]} 18. Nxe4
{[%clk 00:12:09]} {[%emt 00:00:24]} Bxe4 {[%clk 00:12:57]} {[%emt 00:00:02]} 19.
Qb3 {[%clk 00:12:09]} {[%emt 00:00:05]} Kh8 {[%clk 00:12:52]} {[%emt 00:00:10]}
20. Kh2 {[%clk 00:11:54]} {[%emt 00:00:20]} h6 {[%clk 00:11:53]} {[%emt
00:01:04]} 21. a4 {[%clk 00:11:30]} {[%emt 00:00:30]} g5 {[%clk 00:11:55]}
{[%emt 00:00:02]} 22. Bd4 {[%clk 00:10:51]} {[%emt 00:00:44]} Qh5 {[%clk
00:11:17]} {[%emt 00:00:43]} 23. Qb2 {[%clk 00:10:33]} {[%emt 00:00:23]} Rf7
{[%clk 00:08:49]} {[%emt 00:02:32]} 24. Kg1 {[%clk 00:07:53]} {[%emt 00:02:46]}
Raf8 {[%clk 00:07:03]} {[%emt 00:01:51]} 25. c5 {[%clk 00:07:49]} {[%emt
00:00:10]} Ne8 {[%clk 00:06:49]} {[%emt 00:00:19]} 26. Bxg7+ {[%clk 00:07:32]}
{[%emt 00:00:21]} Nxg7 {[%clk 00:06:53]} {[%emt 00:00:02]} 27. g4 {[%clk
00:07:17]} {[%emt 00:00:20]} Qg6 {[%clk 00:06:43]} {[%emt 00:00:14]} 28. Nd4
{[%clk 00:06:50]} {[%emt 00:00:32]} Bxg2 {[%clk 00:05:22]} {[%emt 00:01:26]} 29.
Qxg2 {[%clk 00:06:54]} Rxf1+ {[%clk 00:05:14]} {[%emt 00:00:14]} 30. Rxf1
{[%clk 00:06:58]} {[%emt 00:00:01]} Rxf1+ {[%clk 00:05:17]} 31. Qxf1 {[%clk
00:07:00]} {[%emt 00:00:03]} Qe4 {[%clk 00:05:01]} {[%emt 00:00:21]} 32. Qf2
{[%clk 00:06:51]} {[%emt 00:00:14]} Qb1+ {[%clk 00:04:50]} {[%emt 00:00:17]} 33.
Kg2 {[%clk 00:06:45]} {[%emt 00:00:10]} Qxb4 {[%clk 00:04:54]} {[%emt
00:00:01]} 34. Qf6 {[%clk 00:06:29]} {[%emt 00:00:22]} Qd2+ {[%clk 00:03:59]}
{[%emt 00:00:59]} 35. Kf3 {[%clk 00:06:21]} {[%emt 00:00:12]} Qd1+ {[%clk
00:03:56]} {[%emt 00:00:09]} 36. Kg2 {[%clk 00:05:50]} {[%emt 00:00:36]} Qd2+
{[%clk 00:03:55]} {[%emt 00:00:06]} 37. Kf3 {[%clk 00:05:53]} {[%emt 00:00:02]}
Qd1+ {[%clk 00:03:59]} {[%emt 00:00:01]} 38. Kg2 {[%clk 00:05:30]} {[%emt
00:00:28]} Qd2+ {[%clk 00:03:58]} {[%emt 00:00:05]} 39. Kf1 {[%clk 00:04:55]}
{[%emt 00:00:41]} Qd1+ {[%clk 00:03:42]} {[%emt 00:00:21]} 40. Kf2 {[%clk
00:04:51]} {[%emt 00:00:09]} Qb1 {[%emt 00:00:58]} 41. Nf5 {[%emt 00:00:33]}
Kh7 42. Nd4 {[%emt 00:00:12]} 1/2-1/2